bitfinex/quotes_BTCUSD_20240827
["timestamp","ask_amount","ask_price","bid_price","bid_amount"]
[1724771986847,0.22455455,61909.0,61899.0,0.17410438]
[1724771987061,0.22555455,61909.0,61903.0,0.007]
[1724771987271,0.22555455,61909.0,61903.0,0.011]
[1724771987494,0.22555455,61909.0,61903.0,0.007]
[1724771987711,0.22555455,61909.0,61904.0,0.004]
[1724771988148,0.22555455,61909.0,61903.0,0.007]
[1724771988574,0.22455455,61909.0,61899.0,0.33565438]
[1724771988782,0.22455455,61909.0,61899.0,0.17410438]
[1724771988992,0.22555455,61909.0,61904.0,0.007]
[1724771989688,0.22455455,61909.0,61900.0,0.16478048]
[1724771989919,0.22555455,61909.0,61903.0,0.004]
[1724771990149,0.22555455,61909.0,61904.0,0.00323043]
[1724771990593,0.22455455,61909.0,61904.0,0.00723043]
[1724771990811,0.22455455,61909.0,61905.0,0.15996545]
[1724771991042,0.22455455,61909.0,61906.0,0.00323036]
[1724771992665,0.22555455,61909.0,61906.0,0.00323036]
[1724771993094,0.22455455,61909.0,61908.0,0.32306]
[1724771993339,0.22455455,61909.0,61908.0,0.64455545]
[1724771993340,0.22555455,61909.0,61908.0,0.64455545]
[1724771993580,0.22555455,61909.0,61908.0,0.33897159]
[1724771993814,0.22645985,61909.0,61908.0,0.33897159]
[1724771994036,0.22545985,61909.0,61908.0,0.33897159]
[1724771994527,0.22645985,61909.0,61908.0,0.18844159]
[1724771994786,0.22645985,61909.0,61908.0,0.20572202]
[1724771995003,0.22645985,61909.0,61908.0,0.36725202]
[1724771995226,0.22645985,61909.0,61908.0,0.20572202]
[1724771995459,0.22645985,61909.0,61908.0,0.36725202]
[1724771995694,0.22645985,61909.0,61908.0,0.69031202]
[1724771995908,0.22645985,61909.0,61908.0,0.68708175]
[1724771997574,0.22645985,61909.0,61908.0,1.29924175]
[1724771997796,0.22645985,61909.0,61908.0,1.39924175]
[1724771998017,0.22645985,61909.0,61908.0,1.72230175]
[1724771998240,0.22645985,61909.0,61908.0,1.74933714]
[1724771998729,0.22645985,61909.0,61908.0,2.24038599]
[1724771999001,0.04750875,61909.0,61908.0,2.34200765]
[1724771999274,0.03941722,61909.0,61908.0,2.34200765]
[1724771999524,0.02689829,61909.0,61908.0,2.68933074]
[1724771999763,0.182,61937.0,61931.0,0.16147]
[1724772000004,0.182,61937.0,61931.0,0.66184851]
[1724772000330,0.182,61937.0,61931.0,0.98478851]
[1724772000491,0.0009053,61938.0,61931.0,1.08478851]
[1724772000721,0.0009053,61938.0,61931.0,0.76184851]
[1724772000947,0.29170421,61932.0,61931.0,0.27743851]
[1724772001171,0.29170421,61932.0,61931.0,0.11747306]
[1724772001388,0.48770421,61932.0,61931.0,0.105]
[1724772001658,0.48770421,61932.0,61931.0,0.005]
[1724772001907,0.64917121,61932.0,61931.0,0.005]
[1724772002126,0.97210521,61932.0,61931.0,0.005]
[1724772002368,1.29503921,61932.0,61931.0,0.005]
[1724772002614,1.76307378,61932.0,61931.0,0.005]
[1724772002862,0.472,61927.0,61918.0,0.04114665]
[1724772003103,0.472,61927.0,61919.0,0.00322984]
[1724772003319,0.472,61927.0,61918.0,0.04114665]
[1724772003544,0.472,61927.0,61921.0,0.01747178]
[1724772004478,0.485,61927.0,61921.0,0.01747178]
[1724772004745,0.485,61927.0,61918.0,0.01422726]
[1724772005205,0.485,61927.0,61913.0,0.1]
[1724772005452,0.64648,61927.0,61914.0,0.15996545]
[1724772005695,0.2972,61926.0,61915.0,0.1]
[1724772006185,0.30043127,61926.0,61921.0,0.001]
[1724772006603,0.30043127,61926.0,61915.0,0.1]
[1724772006893,0.2972,61926.0,61916.0,0.16319522]
[1724772007115,0.2972,61926.0,61917.0,0.1]
[1724772007322,0.2972,61926.0,61918.0,0.00322965]
[1724772007535,0.3042,61926.0,61918.0,0.00322965]
[1724772007743,0.2992,61926.0,61918.0,0.00322965]
[1724772008992,0.2972,61926.0,61918.0,0.00322965]
[1724772009178,0.3032,61926.0,61918.0,0.00322965]
[1724772009405,0.2972,61926.0,61918.0,0.00322965]
[1724772009621,0.3002,61926.0,61918.0,0.00322965]
[1724772009812,0.3032,61926.0,61918.0,0.00322965]
[1724772010055,0.3002,61926.0,61918.0,0.00322965]
[1724772010482,0.2992,61926.0,61918.0,0.00322965]
[1724772010920,0.30243127,61926.0,61918.0,0.001]
[1724772011388,0.2789,61925.0,61918.0,0.001]
[1724772011630,1.38743698,61919.0,61918.0,0.001]
[1724772011915,1.84530243,61919.0,61918.0,0.001]
[1724772012350,1.84530243,61919.0,61916.0,0.000822]
[1724772012351,0.807532,61917.0,61916.0,0.000822]
[1724772012572,1.105432,61917.0,61916.0,0.000822]
[1724772012821,1.83469249,61917.0,61916.0,0.000822]
[1724772013039,2.04263999,61917.0,61916.0,0.000822]
[1724772013263,1.64895149,61917.0,61916.0,0.000822]
[1724772013909,1.53568788,61917.0,61916.0,0.000822]
[1724772014119,1.55868788,61917.0,61916.0,0.002822]
[1724772014340,1.54468788,61917.0,61916.0,0.001822]
[1724772014564,1.56999029,61917.0,61916.0,0.001822]
[1724772014982,1.72995574,61917.0,61916.0,0.001822]
[1724772015489,2.53748874,61917.0,61916.0,0.001822]
[1724772015743,2.36852329,61917.0,61916.0,0.001822]
[1724772015955,2.31753286,61917.0,61916.0,0.002822]
[1724772016166,1.98251986,61917.0,61916.0,0.001822]
[1724772016373,1.99651986,61917.0,61916.0,0.002822]
[1724772016593,1.98751986,61917.0,61916.0,0.001822]
[1724772016822,1.99651986,61917.0,61916.0,0.001822]
[1724772017081,2.01051986,61917.0,61916.0,0.002822]
[1724772017292,1.68750686,61917.0,61916.0,0.002822]
[1724772017506,1.65950686,61917.0,61916.0,0.001822]
[1724772017722,1.98251986,61917.0,61916.0,0.001822]
[1724772018532,2.46549831,61917.0,61916.0,0.001822]
[1724772018778,2.46549831,61917.0,61916.0,0.002822]
[1724772018779,2.20451362,61917.0,61916.0,0.002822]
[1724772018998,2.57548678,61917.0,61916.0,0.002822]
[1724772019224,2.62474268,61917.0,61916.0,0.002822]
[1724772019437,1.49419768,61917.0,61889.0,0.161579]
[1724772019674,0.4776,61904.0,61891.0,0.47989634]
[1724772019901,0.48452,61903.0,61892.0,0.53316545]
[1724772021800,0.48452,61903.0,61892.0,0.72526545]
[1724772022473,0.48452,61903.0,61893.0,0.00323092]
[1724772022701,0.48452,61903.0,61895.0,0.323127]
[1724772022919,0.48452,61903.0,61896.0,0.16319621]
[1724772023139,0.48452,61903.0,61896.0,0.32475621]
[1724772023381,0.48452,61903.0,61897.0,0.161557]
[1724772023598,0.48452,61903.0,61898.0,0.16478576]
[1724772023811,0.48452,61903.0,61898.0,0.00323076]
[1724772025383,0.48452,61903.0,61899.0,0.15996545]
[1724772025654,0.48452,61903.0,61899.0,0.32474915]
[1724772026105,0.48452,61903.0,61899.0,0.15996545]
[1724772026753,0.48452,61903.0,61896.0,0.01460209]
[1724772026967,0.48452,61903.0,61899.0,0.002]
[1724772026968,0.2728,61902.0,61899.0,0.002]
[1724772027216,0.27603127,61902.0,61899.0,0.002]
[1724772027433,0.2728,61902.0,61899.0,0.002]
[1724772028721,0.2728,61902.0,61899.0,0.001]
[1724772029586,0.1966,61901.0,61899.0,0.001]
[1724772029836,0.44248127,61900.0,61899.0,0.004]
[1724772030282,0.92700127,61900.0,61899.0,0.004]
[1724772030504,0.92700127,61900.0,61899.0,0.001]
[1724772030717,0.76545127,61900.0,61899.0,0.001]
[1724772031389,0.76222,61900.0,61892.0,0.01402725]
[1724772031601,0.76922,61900.0,61899.0,0.001]
[1724772032468,0.76222,61900.0,61892.0,0.01402725]
[1724772032690,0.76922,61900.0,61899.0,0.001]
[1724772032904,0.77322,61900.0,61899.0,0.001]
[1724772033121,0.77322,61900.0,61892.0,0.01402725]
[1724772033331,0.78022,61900.0,61899.0,0.001]
[1724772033542,0.77622,61900.0,61899.0,0.001]
[1724772033785,0.77822,61900.0,61899.0,0.001822]
[1724772034017,0.93818545,61900.0,61899.0,0.001822]
[1724772034453,1.09973545,61900.0,61899.0,0.001822]
[1724772034671,1.08573545,61900.0,61899.0,0.000822]
[1724772035200,1.09073545,61900.0,61899.0,0.000822]
[1724772035408,1.08873545,61900.0,61899.0,0.000822]
[1724772035626,1.09073545,61900.0,61899.0,0.000822]
[1724772036284,0.76922,61900.0,61899.0,0.000822]
[1724772036503,0.49152,61900.0,61899.0,0.000822]
[1724772037798,0.49152,61900.0,61899.0,0.294522]
[1724772038031,0.48652,61900.0,61899.0,0.30901896]
[1724772038888,0.49152,61900.0,61899.0,0.30901896]
[1724772039121,0.48452,61900.0,61899.0,0.63053741]
[1724772039337,0.48652,61900.0,61899.0,0.64801472]
[1724772039758,0.48452,61900.0,61899.0,0.64801472]
[1724772040162,0.48452,61900.0,61899.0,0.65001472]
[1724772041131,0.48452,61900.0,61899.0,0.97312072]
[1724772042210,0.48452,61900.0,61899.0,0.97312063]
[1724772043079,0.48452,61900.0,61899.0,0.65001463]
[1724772043693,0.48452,61900.0,61899.0,0.48846163]
[1724772044108,0.48452,61900.0,61899.0,0.65001463]
[1724772044534,0.48452,61900.0,61899.0,0.19476163]
[1724772045187,0.48452,61900.0,61899.0,0.03479618]
[1724772045635,0.48452,61900.0,61899.0,1.15232063]
[1724772045836,0.48452,61900.0,61899.0,1.25232063]
[1724772046039,0.48452,61900.0,61899.0,1.57542663]
[1724772046673,0.48452,61900.0,61899.0,1.25232063]
[1724772047742,0.48452,61900.0,61899.0,1.57342663]
[1724772047948,0.48452,61900.0,61899.0,1.57642663]
[1724772048350,0.48452,61900.0,61899.0,1.57842663]
[1724772048555,0.48552,61900.0,61899.0,1.58442663]
[1724772048762,0.48552,61900.0,61899.0,1.56194941]
[1724772048967,0.48552,61900.0,61899.0,1.39232513]
[1724772049171,0.48652,61900.0,61899.0,1.40532513]
[1724772049383,0.48652,61900.0,61899.0,1.72843113]
[1724772049807,0.48652,61900.0,61899.0,1.40532513]
[1724772050064,0.48652,61900.0,61899.0,0.31176013]
[1724772050647,0.48652,61900.0,61899.0,0.15179468]
[1724772052534,0.48652,61900.0,61899.0,0.05179468]
[1724772052946,0.48652,61900.0,61899.0,0.03431896]
[1724772053558,0.48652,61900.0,61899.0,0.019822]
[1724772053770,0.77312,61900.0,61899.0,0.019822]
[1724772053979,1.065952,61900.0,61899.0,0.019822]
[1724772054194,1.064952,61900.0,61899.0,0.013822]
[1724772054599,0.96912,61900.0,61899.0,0.014822]
[1724772054800,0.96812,61900.0,61899.0,0.001822]
[1724772055219,0.96812,61900.0,61899.0,0.004822]
[1724772055430,0.96812,61900.0,61899.0,0.003822]
[1724772055629,0.97112,61900.0,61899.0,0.000822]
[1724772056051,0.97212,61900.0,61899.0,0.000822]
[1724772057493,0.97612,61900.0,61899.0,0.000822]
[1724772057944,0.96812,61900.0,61899.0,0.000822]
[1724772058347,0.96912,61900.0,61899.0,0.000822]
[1724772059334,0.96912,61900.0,61899.0,0.001822]
[1724772059759,0.96912,61900.0,61899.0,0.000822]
[1724772059961,0.96912,61900.0,61899.0,0.002822]
[1724772060616,0.96812,61900.0,61899.0,0.002822]
[1724772061481,0.96812,61900.0,61899.0,0.000822]
[1724772061707,1.25466079,61900.0,61899.0,0.000822]
[1724772061928,1.25466079,61900.0,61899.0,0.003822]
[1724772062155,1.25566079,61900.0,61899.0,0.003822]
[1724772062590,1.25466079,61900.0,61899.0,0.000822]
[1724772062829,0.96912,61900.0,61899.0,0.000822]
[1724772063041,1.453771,61900.0,61899.0,0.000822]
[1724772063253,2.0079856,61900.0,61899.0,0.000822]
[1724772063671,1.93583745,61900.0,61899.0,0.000822]
[1724772064489,1.93983745,61900.0,61899.0,0.000822]
[1724772064694,2.01598157,61900.0,61899.0,0.000822]
[1724772064867,2.01198157,61900.0,61899.0,0.000822]
[1724772065084,2.02398157,61900.0,61899.0,0.001822]
[1724772065354,2.01998157,61900.0,61899.0,0.001862]
[1724772065578,1.68182884,61900.0,61899.0,0.002862]
[1724772067172,1.19876239,61900.0,61899.0,0.002862]
[1724772067362,0.98912,61900.0,61899.0,0.002862]
[1724772069019,0.70252,61900.0,61899.0,0.002862]
[1724772069905,0.70252,61900.0,61899.0,0.001862]
[1724772069906,0.69352,61900.0,61899.0,0.001862]
[1724772070165,0.69352,61900.0,61899.0,0.427815]
[1724772070166,0.49652,61900.0,61899.0,0.427815]
[1724772070632,0.48452,61900.0,61899.0,0.28273932]
[1724772071720,0.48452,61900.0,61899.0,0.62799232]
[1724772071937,0.48452,61900.0,61899.0,0.44729232]
[1724772072144,0.48452,61900.0,61899.0,0.28873932]
[1724772072553,0.48452,61900.0,61899.0,0.44729232]
[1724772072796,0.48452,61900.0,61899.0,0.45329232]
[1724772073050,0.48452,61900.0,61899.0,0.93636377]
[1724772073682,0.48452,61900.0,61899.0,0.61325777]
[1724772074326,0.48452,61900.0,61899.0,0.02733932]
[1724772074592,0.48452,61900.0,61899.0,0.009862]
[1724772075708,0.48452,61900.0,61899.0,0.003862]
[1724772075925,0.48452,61900.0,61899.0,0.005862]
[1724772076368,0.48452,61900.0,61899.0,0.003862]
[1724772076853,0.48452,61900.0,61899.0,0.005862]
[1724772077516,0.48452,61900.0,61899.0,0.002862]
[1724772077946,0.48552,61900.0,61899.0,0.002862]
[1724772078162,0.48452,61900.0,61899.0,0.002862]
[1724772078587,0.48552,61900.0,61899.0,0.002862]
[1724772081207,0.61488599,61900.0,61899.0,0.002862]
[1724772081443,0.48552,61900.0,61899.0,0.002862]
[1724772082565,1.743272,61900.0,61899.0,0.002862]
[1724772082802,2.22633845,61900.0,61899.0,0.002862]
[1724772083069,1.99957626,61900.0,61899.0,0.002862]
[1724772083274,1.90323745,61900.0,61899.0,0.002862]
[1724772083483,2.0632029,61900.0,61899.0,0.002862]
[1724772083933,2.0622029,61900.0,61899.0,0.002862]
[1724772084173,2.0712029,61900.0,61899.0,0.003862]
[1724772084393,2.3943039,61900.0,61899.0,0.001862]
[1724772084612,2.4003039,61900.0,61899.0,0.001862]
[1724772084828,2.49664271,61900.0,61899.0,0.001862]
[1724772085053,2.52193582,61900.0,61899.0,0.001862]
[1724772085274,2.49664271,61900.0,61899.0,0.001862]
[1724772085497,2.4003039,61900.0,61899.0,0.001862]
[1724772085724,2.0772029,61900.0,61899.0,0.001862]
[1724772085937,2.17354171,61900.0,61899.0,0.001862]
[1724772086151,2.10249618,61900.0,61899.0,0.001862]
[1724772086371,2.54602069,61900.0,61899.0,0.001862]
[1724772086585,2.22291969,61900.0,61899.0,0.001862]
[1724772086799,2.1734988,61900.0,61899.0,0.001862]
[1724772087227,2.19879211,61900.0,61899.0,0.001862]
[1724772087442,2.0772029,61900.0,61899.0,0.001862]
[1724772087876,2.1734988,61900.0,61899.0,0.001862]
[1724772088382,2.0772029,61900.0,61899.0,0.001862]
[1724772089885,1.8535679,61900.0,61899.0,0.001862]
[1724772090106,1.11107,61900.0,61899.0,0.001862]
[1724772090342,1.434171,61900.0,61899.0,0.001862]
[1724772090594,1.434171,61900.0,61887.0,0.000822]
[1724772090595,0.99131,61888.0,61887.0,0.000822]
[1724772090824,2.20789652,61888.0,61887.0,0.000822]
[1724772091070,2.18260075,61888.0,61887.0,0.000822]
[1724772091310,2.30560075,61888.0,61887.0,0.000822]
[1724772091549,3.00254292,61888.0,61887.0,0.000822]
[1724772091985,3.00254292,61888.0,61876.0,0.000823]
[1724772091986,1.89529815,61877.0,61876.0,0.000823]
[1724772092224,2.82005597,61877.0,61876.0,0.000823]
[1724772092435,2.53813905,61877.0,61876.0,0.000823]
[1724772092652,2.69974905,61877.0,61876.0,0.000823]
[1724772092871,2.72506598,61877.0,61876.0,0.000823]
[1724772093092,2.82123798,61877.0,61876.0,0.000823]
[1724772093305,2.72506598,61877.0,61876.0,0.000823]
[1724772093530,2.82123798,61877.0,61876.0,0.000823]
[1724772093966,2.72506598,61877.0,61876.0,0.000823]
[1724772094187,2.73906598,61877.0,61876.0,0.000823]
[1724772095289,2.75206598,61877.0,61876.0,0.001823]
[1724772095504,2.82414727,61877.0,61876.0,0.001823]
[1724772095728,2.75206598,61877.0,61876.0,0.001823]
[1724772095988,2.80008106,61877.0,61876.0,0.001823]
[1724772096208,2.75206598,61877.0,61876.0,0.001823]
[1724772096625,2.85206598,61877.0,61876.0,0.001823]
[1724772097482,2.83806598,61877.0,61876.0,0.001823]
[1724772097883,2.83906598,61877.0,61876.0,0.000823]
[1724772098317,2.85206598,61877.0,61876.0,0.001823]
[1724772099521,2.85206598,61877.0,61876.0,0.000823]
[1724772099522,2.83906598,61877.0,61876.0,0.000823]
[1724772099749,2.85206598,61877.0,61876.0,0.001823]
[1724772099978,2.52884498,61877.0,61876.0,0.001823]
[1724772100221,1.88569308,61877.0,61876.0,0.001823]
[1724772100464,0.71743693,61877.0,61876.0,0.001823]
[1724772100680,2.24107953,61877.0,61876.0,0.001823]
[1724772101131,2.25507953,61877.0,61876.0,0.001823]
[1724772101364,2.25507953,61877.0,61876.0,0.000823]
[1724772101365,2.06811408,61877.0,61876.0,0.000823]
[1724772101581,2.07711408,61877.0,61876.0,0.001823]
[1724772101834,0.97393693,61877.0,61876.0,0.001823]
[1724772102066,0.50652,61877.0,61876.0,0.001823]
[1724772102298,0.50652,61877.0,61876.0,0.58520145]
[1724772102556,0.50652,61877.0,61876.0,0.42358845]
[1724772102804,0.50652,61877.0,61876.0,0.90842845]
[1724772103048,0.50652,61877.0,61876.0,1.23165545]
[1724772103243,0.49752,61877.0,61876.0,1.23065545]
[1724772103498,0.48452,61877.0,61876.0,1.23065545]
[1724772103744,0.48452,61877.0,61876.0,1.23365545]
[1724772103962,0.48452,61877.0,61876.0,1.33365545]
[1724772104174,0.48452,61877.0,61876.0,1.34522866]
[1724772104363,0.48642421,61877.0,61876.0,1.34822866]
[1724772105042,0.48742421,61877.0,61876.0,1.86765566]
[1724772105279,0.48742421,61877.0,61876.0,2.23136332]
[1724772105746,0.48642421,61877.0,61876.0,2.22536332]
[1724772106011,0.48742421,61877.0,61876.0,2.22188266]
[1724772106204,0.48742421,61877.0,61876.0,2.23936103]
[1724772106460,0.48642421,61877.0,61876.0,2.22536103]
[1724772106693,0.48542421,61877.0,61876.0,0.01539621]
[1724772106921,0.48542421,61877.0,61876.0,0.003823]
[1724772107184,0.84583421,61877.0,61876.0,0.003823]
[1724772107426,0.84683421,61877.0,61876.0,0.017823]
[1724772107646,1.00679966,61877.0,61876.0,0.017823]
[1724772107868,0.84418966,61877.0,61876.0,0.014823]
[1724772108092,0.69222421,61877.0,61876.0,0.014823]
[1724772108310,0.68422421,61877.0,61876.0,0.014823]
[1724772108746,0.69122421,61877.0,61876.0,0.000823]
[1724772108977,0.69522421,61877.0,61876.0,0.000823]
[1724772109448,0.69122421,61877.0,61876.0,0.000823]
[1724772109911,0.69522421,61877.0,61876.0,0.000823]
[1724772110137,0.68722421,61877.0,61876.0,0.000823]
[1724772110353,0.68322421,61877.0,61876.0,0.000823]
[1724772110571,0.69122421,61877.0,61876.0,0.000823]
[1724772110807,0.69522421,61877.0,61876.0,0.000823]
[1724772111044,0.68722421,61877.0,61876.0,0.000823]
[1724772111313,0.69522421,61877.0,61876.0,0.000823]
[1724772111549,0.68722421,61877.0,61876.0,0.000823]
[1724772111789,0.48942421,61877.0,61876.0,0.000823]
[1724772112008,0.49742421,61877.0,61876.0,0.000823]
[1724772112464,0.49342421,61877.0,61876.0,0.000863]
[1724772112903,0.49742421,61877.0,61876.0,0.000863]
[1724772113351,0.48542421,61877.0,61876.0,0.000863]
[1724772113687,0.49342421,61877.0,61876.0,0.258663]
[1724772113801,0.48542421,61877.0,61876.0,0.92885545]
[1724772114019,0.48542421,61877.0,61876.0,1.09046845]
[1724772114276,0.48542421,61877.0,61876.0,1.41369545]
[1724772114513,0.48842421,61877.0,61876.0,1.41369545]
[1724772114731,0.48542421,61877.0,61876.0,1.43117675]
[1724772114971,0.48542421,61877.0,61876.0,1.43317675]
[1724772115906,0.48642421,61877.0,61876.0,1.44017675]
[1724772116383,0.48642421,61877.0,61876.0,1.43817675]
[1724772116600,0.48542421,61877.0,61876.0,1.43117675]
[1724772116822,0.48642421,61877.0,61876.0,1.43317675]
[1724772117046,0.48642421,61877.0,61876.0,1.44517675]
[1724772117258,0.48642421,61877.0,61876.0,1.10446845]
[1724772117486,0.48642421,61877.0,61876.0,1.09246845]
[1724772117712,0.48642421,61877.0,61876.0,1.41569545]
[1724772118593,0.48642421,61877.0,61876.0,1.09246845]
[1724772118880,0.48542421,61877.0,61876.0,0.41862845]
[1724772119612,0.48642421,61877.0,61876.0,0.43262845]
[1724772119959,0.48542421,61877.0,61876.0,0.41862845]
[1724772120244,0.48642421,61877.0,61876.0,0.42062845]
[1724772120469,0.48742421,61877.0,61876.0,0.014863]
[1724772120684,0.48642421,61877.0,61876.0,0.014863]
[1724772120906,0.48642421,61877.0,61876.0,0.002863]
[1724772121125,0.48642421,61877.0,61876.0,0.000863]
[1724772121126,0.48542421,61877.0,61876.0,0.000863]
[1724772121354,0.48642421,61877.0,61876.0,0.012863]
[1724772121570,1.47619763,61877.0,61876.0,0.014863]
[1724772121997,1.47619763,61877.0,61876.0,0.01288163]
[1724772122204,0.99136663,61877.0,61876.0,0.01288163]
[1724772122430,0.94272421,61877.0,61876.0,0.01288163]
[1724772122667,0.94172421,61877.0,61876.0,0.002]
[1724772122894,0.94972421,61877.0,61876.0,0.003]
[1724772123566,0.94072421,61877.0,61872.0,0.01748233]
[1724772123797,0.50542421,61877.0,61876.0,0.001]
[1724772124250,0.48542421,61877.0,61872.0,0.01748233]
[1724772124469,0.49742421,61877.0,61872.0,0.01748233]
[1724772124694,0.49442421,61877.0,61876.0,0.001]
[1724772125124,0.49642421,61877.0,61876.0,0.001]
[1724772125339,0.49442421,61877.0,61876.0,0.001]
[1724772125800,0.49442421,61877.0,61876.0,0.89430545]
[1724772126014,0.48542421,61877.0,61876.0,1.83229163]
[1724772126231,0.46388089,61877.0,61876.0,2.15228645]
[1724772126442,0.46388089,61877.0,61876.0,2.17528645]
[1724772126683,0.1842,61900.0,61876.0,2.17528645]
[1724772126684,0.1842,61900.0,61876.0,0.28296545]
[1724772126904,0.1976,61907.0,61900.0,0.161548]
[1724772127136,0.1976,61907.0,61898.0,0.161553]
[1724772127337,0.1976,61907.0,61897.0,0.0032308]
[1724772127338,0.1976,61907.0,61899.0,0.161553]
[1724772127779,0.1976,61907.0,61900.0,0.0032308]
[1724772127996,0.00090421,61916.0,61912.0,0.161518]
[1724772127997,0.1976,61915.0,61912.0,0.161518]
[1724772128210,0.00090421,61916.0,61911.0,0.161521]
[1724772128440,0.00090421,61916.0,61914.0,0.161513]
[1724772128679,0.00090421,61916.0,61912.0,0.323038]
[1724772128680,0.00090421,61916.0,61912.0,0.2582]
[1724772128897,0.00090421,61916.0,61909.0,0.32305]
[1724772129147,0.2498,61915.0,61910.0,0.1]
[1724772129365,0.2498,61915.0,61905.0,0.25996545]
[1724772129579,0.1976,61913.0,61905.0,0.11460238]
[1724772129828,0.00323127,61912.0,61905.0,0.11460238]
[1724772130036,0.00090421,61916.0,61906.0,0.15996545]
[1724772130258,0.00090421,61916.0,61908.0,0.161528]
[1724772130491,0.01190421,61916.0,61908.0,0.161528]
[1724772130699,0.001,61913.0,61908.0,0.161528]
[1724772130903,0.001,61913.0,61906.0,0.32149845]
[1724772131316,0.00790421,61916.0,61906.0,0.15996545]
[1724772131525,0.00090421,61916.0,61908.0,0.001]
[1724772131745,0.00413548,61916.0,61908.0,0.003]
[1724772131968,0.00090421,61916.0,61908.0,0.003]
[1724772132171,0.00090421,61916.0,61908.0,0.001]
[1724772133429,0.00413548,61916.0,61904.0,0.01436086]
[1724772133648,0.01113548,61916.0,61906.0,0.005]
[1724772133852,0.2453,61915.0,61906.0,0.005]
[1724772134058,0.00323127,61914.0,61906.0,0.005]
[1724772134268,0.00323127,61914.0,61902.0,0.161544]
[1724772134498,0.00323127,61914.0,61903.0,0.25996545]
[1724772135169,0.00260541,61914.0,61903.0,0.25996545]
[1724772135408,0.00460541,61914.0,61903.0,0.25996545]
[1724772135857,0.00460541,61914.0,61903.0,0.1]
[1724772136074,0.00460541,61914.0,61900.0,0.01462871]
[1724772136291,0.00460541,61914.0,61900.0,0.15996545]
[1724772136501,0.16611941,61914.0,61901.0,0.1]
[1724772136716,0.00260541,61914.0,61900.0,0.15996545]
[1724772136921,0.00260541,61914.0,61895.0,0.28236584]
[1724772136922,0.511038,61913.0,61895.0,0.28236584]
[1724772137138,0.00197955,61912.0,61895.0,0.28236584]
[1724772137559,0.161525,61910.0,61895.0,0.28236584]
[1724772137773,0.161536,61906.0,61895.0,0.01456584]
[1724772138004,0.00197955,61905.0,61894.0,0.4755]
[1724772138217,0.32306,61908.0,61894.0,0.4755]
[1724772138435,0.161532,61907.0,61894.0,0.48953574]
[1724772138641,0.161532,61907.0,61894.0,0.01403574]
[1724772138859,0.161532,61907.0,61891.0,0.161573]
[1724772139085,0.161532,61907.0,61891.0,0.32153845]
[1724772139350,0.00260541,61906.0,61891.0,0.32153845]
[1724772139795,0.00260541,61906.0,61895.0,0.003]
[1724772140010,0.00360541,61906.0,61895.0,0.003]
[1724772140216,0.00360541,61906.0,61892.0,0.161571]
[1724772140627,0.01160541,61906.0,61891.0,0.33559999]
[1724772140846,0.00260541,61906.0,61892.0,0.161571]
[1724772141058,0.00360541,61905.0,61894.0,0.008]
[1724772141487,0.00260541,61905.0,61891.0,0.17402599]
[1724772141960,0.00260541,61905.0,61892.0,0.161571]
[1724772142419,0.00260541,61905.0,61891.0,0.17402599]
[1724772142420,0.00260541,61905.0,61893.0,0.161568]
[1724772142988,0.00260541,61905.0,61892.0,0.161571]
[1724772143210,0.00260541,61905.0,61893.0,0.161568]
[1724772143847,0.00560541,61905.0,61893.0,0.161568]
[1724772144070,0.01060541,61905.0,61893.0,0.161568]
[1724772144283,0.00260541,61905.0,61895.0,0.161563]
[1724772144526,0.00260541,61905.0,61893.0,0.161568]
[1724772144527,0.002,61905.0,61893.0,0.161568]
[1724772144744,0.006,61905.0,61893.0,0.161568]
[1724772144960,0.00260541,61904.0,61893.0,0.161568]
[1724772145181,0.00260541,61904.0,61894.0,0.161566]
[1724772145398,0.00260541,61904.0,61895.0,0.161563]
[1724772145616,0.002,61905.0,61895.0,0.161563]
[1724772145894,0.005,61905.0,61895.0,0.161563]
[1724772146307,0.003,61905.0,61895.0,0.161563]
[1724772146516,0.003,61905.0,61894.0,0.161565]
[1724772146725,0.005,61905.0,61894.0,0.161565]
[1724772146942,0.005,61905.0,61894.0,0.161564]
[1724772147157,0.00260541,61908.0,61894.0,0.323129]
[1724772147365,0.001,61904.0,61899.0,0.161551]
[1724772147574,0.001,61904.0,61903.0,0.484629]
[1724772147785,0.001,61904.0,61903.0,0.96768045]
[1724772148441,0.001,61904.0,61903.0,1.29076645]
[1724772148866,0.002,61908.0,61903.0,1.29076645]
[1724772148867,0.002,61908.0,61907.0,0.323065]
[1724772149080,0.002,61908.0,61907.0,0.484597]
[1724772149296,0.002,61908.0,61907.0,0.161532]
[1724772150048,0.188,61913.0,61908.0,0.161527]
[1724772150177,0.188,61913.0,61909.0,0.161526]
[1724772150397,0.188,61913.0,61907.0,0.33731089]
[1724772150599,0.188,61913.0,61907.0,0.17577689]
[1724772150831,0.002,61908.0,61907.0,0.17577689]
[1724772151246,0.188,61913.0,61907.0,0.17577689]
[1724772151463,0.196,61913.0,61907.0,0.17577689]
[1724772151669,0.196,61913.0,61908.0,0.161528]
[1724772151878,0.188,61913.0,61908.0,0.161528]
[1724772152088,0.188,61913.0,61907.0,0.01424589]
[1724772152524,0.188,61913.0,61904.0,0.161539]
[1724772152732,0.188,61913.0,61905.0,0.161536]
[1724772153246,0.193,61913.0,61905.0,0.161536]
[1724772153692,0.196,61913.0,61906.0,0.00323033]
[1724772153901,0.201,61913.0,61906.0,0.00323033]
[1724772154103,0.193,61913.0,61905.0,0.161536]
[1724772154313,0.196,61913.0,61905.0,0.161536]
[1724772154540,0.188,61913.0,61906.0,0.00323033]
[1724772154798,0.193,61913.0,61906.0,0.00323033]
[1724772155043,0.201,61913.0,61903.0,0.01431449]
[1724772155218,0.2592,61912.0,61904.0,0.161538]
[1724772157285,0.2692,61912.0,61904.0,0.161538]
[1724772157509,0.2692,61912.0,61903.0,0.32150645]
[1724772157726,0.2692,61912.0,61904.0,0.161539]
[1724772158270,0.2692,61912.0,61903.0,0.15996545]
[1724772158480,0.2692,61912.0,61902.0,0.01419088]
[1724772158481,0.34537086,61911.0,61902.0,0.01419088]